[Event "Commonwealth Open 2019"]
[Site "Delhi"]
[Date "2019.06.30"]
[Round "1.19"]
[White "Sudarshan Bhat"]
[Black "Tania, Sachdev"]
[Result "1/2-1/2"]
[ECO "C52"]
[WhiteElo "1835"]
[BlackElo "2401"]
[Annotator "ChessBase"]
[PlyCount "120"]
[EventDate "2019.06.30"]
[EventType "swiss"]
[EventCountry "IND"]
[SourceTitle "playchess.com"]
[Source "ChessBase"]
[SourceQuality "1"]
[TimeControl "5400+30"]

1. e4 {[%emt 0:04:23]} e5 {[%emt 0:00:00]} 2. Nf3 {[%emt 0:00:11]} Nc6 {[%emt 0:00:00]} 3. Bc4 {[%emt 0:00:11]} Bc5 {[%emt 0:00:05]} 4. b4 {[%emt 0:01:13]} Bxb4 {[%emt 0:00:28]} 5. c3 {[%emt 0:00:10]} Ba5 {[%emt 0:01:34]} 6. d4 {[%emt 0:00:08]} Qe7 {[%emt 0:07:22]} 7. Ba3 {[%emt 0:02:18]} Qf6 {[%emt 0:09:30]} 8. O-O {[%emt 0:01:50]} Bb6 {[%emt 0:04:40]} 9. Nxe5 {[%emt 0:27:32]} Nxe5 {[%emt 0:00:16]} 10. dxe5 {[%emt 0:00:01]} Qxe5 {[%emt 0:00:44]} 11. Qb3 {[%emt 0:00:28]} Nh6 {[%emt 0:07:22]} 12. Nd2 {[%emt 0:00:57]} Bc5 {[%emt 0:12:13]} 13. Nf3 {[%emt 0:03:30]} Qe7 {[%emt 0:00:09]} 14. Bc1 {[%emt 0:02:09]} O-O {[%emt 0:03:02]} 15. e5 {[%emt 0:14:03]} d6 {[%emt 0:14:25]} 16. Bg5 {[%emt 0:01:13]} Qd7 {[%emt 0:02:18]} 17. Rad1 {[%emt 0:09:14]} Qg4 {[%emt 0:05:23]} 18. Be7 {[%emt 0:05:21]} Re8 {[%emt 0:04:17]} 19. exd6 {[%emt 0:00:28]} cxd6 {[%emt 0:00:19]} 20. Bxd6 {[%emt 0:00:36]} Bxd6 {[%emt 0:00:50]} 21. Rxd6 {[%emt 0:00:03]} Qf4 {[%emt 0:00:04]} 22. Rd4 {[%emt 0:03:36]} Qf6 {[%emt 0:03:41]} 23. Rfd1 {[%emt 0:08:50]} Rb8 {[%emt 0:04:57]} 24. Rd6 {[%emt 0:05:54]} Qe7 {[%emt 0:00:58]} 25. Bb5 {[%emt 0:01:04]} Rf8 {[%emt 0:00:12]} 26. Qb4 {[%emt 0:06:32]} Be6 {[%emt 0:13:36]} 27. Qf4 {[%emt 0:01:00]} Rbc8 {[%emt 0:02:26]} 28. Bd7 {[%emt 0:00:20]} Rxc3 {[%emt 0:00:57]} 29. Qe5 {[%emt 0:00:21]} Qf6 {[%emt 0:01:53]} 30. Qxf6 {[%emt 0:00:37]} gxf6 {[%emt 0:00:03]} 31. Bxe6 {[%emt 0:00:12]} fxe6 {[%emt 0:00:03]} 32. Rxe6 {[%emt 0:00:10]} Rc2 {[%emt 0:01:30]} 33. a4 {[%emt 0:01:09]} Ra2 {[%emt 0:00:16]} 34. Re4 {[%emt 0:00:40]} Rf7 {[%emt 0:00:27]} 35. h3 {[%emt 0:00:14]} Rc7 {[%emt 0:00:05]} 36. Rd2 {[%emt 0:00:46]} Rc1+ {[%emt 0:01:08]} 37. Kh2 {[%emt 0:00:04]} Rxd2 {[%emt 0:00:09]} 38. Nxd2 {[%emt 0:00:02]} Rc2 {[%emt 0:00:03]} 39. Rd4 {[%emt 0:00:21]} Kf7 {[%emt 0:00:58]} 40. g4 {[%emt 0:00:30]} Ke6 {[%emt 0:00:11]} 41. f4 {[%emt 0:00:20]} Nf7 {[%emt 0:00:34]} 42. Kg3 {[%emt 0:00:21]} Nd6 {[%emt 0:00:59]} 43. f5+ {[%emt 0:00:23]} Ke7 {[%emt 0:00:20]} 44. Kf4 {[%emt 0:00:46]} Rc1 {[%emt 0:00:56]} 45. Ne4 {[%emt 0:01:34]} Nc4 {[%emt 0:00:06]} 46. Nc5 {[%emt 0:00:39]} b6 {[%emt 0:00:06]} 47. Re4+ {[%emt 0:00:33]} Kf7 {[%emt 0:01:14]} 48. Nd3 {[%emt 0:00:22]} Rf1+ {[%emt 0:00:18]} 49. Kg3 {[%emt 0:00:07]} Nd2 {[%emt 0:00:05]} 50. Rd4 {[%emt 0:00:50]} Ra1 {[%emt 0:01:13]} 51. Nb4 {[%emt 0:00:37]} Ra3+ {[%emt 0:00:24]} 52. Kg2 {[%emt 0:00:22]} Rxa4 {[%emt 0:00:36]} 53. Rxd2 {[%emt 0:00:11]} Rxb4 {[%emt 0:00:01]} 54. Rd7+ {[%emt 0:00:02]} Kg8 {[%emt 0:00:18]} 55. Rxa7 {[%emt 0:00:08]} Rb3 {[%emt 0:00:52]} 56. Rb7 {[%emt 0:00:31]} b5 {[%emt 0:00:39]} 57. Rb6 {[%emt 0:01:43]} Kf7 {[%emt 0:00:06]} 58. Rb7+ {[%emt 0:00:04]} Kg8 {[%emt 0:00:02]} 59. Rb6 {[%emt 0:00:06]} Kf7 {[%emt 0:00:33]} 60. Rb7+ {[%emt 0:00:02]} Kg8 {[%emt 0:00:02]} 1/2-1/2

[Event "Commonwealth Open 2019"]
[Site "Delhi"]
[Date "2019.06.30"]
[Round "1.20"]
[White "Nitin, S.."]
[Black "Dubey Sanchay"]
[Result "1-0"]
[ECO "B90"]
[WhiteElo "2398"]
[BlackElo "1823"]
[Annotator "ChessBase"]
[PlyCount "87"]
[EventDate "2019.06.30"]
[EventType "swiss"]
[EventCountry "IND"]
[SourceTitle "playchess.com"]
[Source "ChessBase"]
[SourceQuality "1"]
[TimeControl "5400+30"]

1. e4 {[%emt 0:00:05]} c5 {[%emt 0:00:42]} 2. Nf3 {[%emt 0:00:18]} d6 {[%emt 0:01:17]} 3. d4 {[%emt 0:00:10]} cxd4 {[%emt 0:00:06]} 4. Nxd4 {[%emt 0:00:07]} Nf6 {[%emt 0:00:09]} 5. Nc3 {[%emt 0:00:08]} a6 {[%emt 0:00:07]} 6. Be3 {[%emt 0:00:12]} e6 {[%emt 0:01:11]} 7. g4 {[%emt 0:06:37]} e5 {[%emt 0:05:24]} 8. Nf5 {[%emt 0:00:09]} g6 {[%emt 0:00:10]} 9. g5 {[%emt 0:02:48]} gxf5 {[%emt 0:00:23]} 10. exf5 {[%emt 0:00:46]} d5 {[%emt 0:06:51]} 11. Qf3 {[%emt 0:09:20]} d4 {[%emt 0:40:00]} 12. O-O-O {[%emt 0:04:33]} Nbd7 {[%emt 0:08:52]} 13. Bxd4 {[%emt 0:14:57]} exd4 {[%emt 0:06:03]} 14. Bc4 {[%emt 0:02:01]} Bc5 {[%emt 0:08:10]} 15. Qh3 {[%emt 0:17:29]} Qc7 {[%emt 0:10:04]} 16. Rhe1+ {[%emt 0:06:37]} Kd8 {[%emt 0:00:42]} 17. gxf6 {[%emt 0:01:38]} dxc3 {[%emt 0:04:16]} 18. Qxc3 {[%emt 0:00:06]} b5 {[%emt 0:01:39]} 19. Bd5 {[%emt 0:00:11]} Rb8 {[%emt 0:00:07]} 20. Re7 {[%emt 0:03:13]} b4 {[%emt 0:01:57]} 21. Qc4 {[%emt 0:00:18]} Bxf2 {[%emt 0:01:20]} 22. Bc6 {[%emt 0:00:25]} Rb6 {[%emt 0:00:53]} 23. Rdxd7+ {[%emt 0:03:07]} Bxd7 {[%emt 0:00:07]} 24. Rxd7+ {[%emt 0:00:03]} Qxd7 {[%emt 0:00:08]} 25. Bxd7 {[%emt 0:00:06]} Kxd7 {[%emt 0:00:18]} 26. Qxf7+ {[%emt 0:00:12]} Kc8 {[%emt 0:01:31]} 27. Qe7 {[%emt 0:00:25]} Rd8 {[%emt 0:00:29]} 28. f7 {[%emt 0:00:18]} Rf6 {[%emt 0:00:28]} 29. a3 {[%emt 0:02:08]} Bh4 {[%emt 0:00:34]} 30. axb4 {[%emt 0:00:34]} Bg5+ {[%emt 0:00:27]} 31. Kb1 {[%emt 0:00:01]} h6 {[%emt 0:00:32]} 32. Ka2 {[%emt 0:00:20]} a5 {[%emt 0:00:32]} 33. b5 {[%emt 0:01:18]} a4 {[%emt 0:00:23]} 34. b6 {[%emt 0:00:31]} Rxb6 {[%emt 0:00:14]} 35. Qxd8+ {[%emt 0:00:51]} Kxd8 {[%emt 0:00:13]} 36. f8=Q+ {[%emt 0:00:07]} Kc7 {[%emt 0:00:10]} 37. Qf7+ {[%emt 0:00:14]} Kb8 {[%emt 0:00:09]} 38. Qe8+ {[%emt 0:00:10]} Kb7 {[%emt 0:00:31]} 39. Qd7+ {[%emt 0:00:12]} Kb8 {[%emt 0:00:49]} 40. Qxa4 {[%emt 0:02:12]} Bf6 {[%emt 0:00:08]} 41. c3 {[%emt 0:00:21]} Kb7 {[%emt 0:00:07]} 42. Qd7+ {[%emt 0:00:11]} Ka6 {[%emt 0:00:06]} 43. b4 {[%emt 0:00:29]} h5 {[%emt 0:00:32]} 44. Kb3 {[%emt 0:00:16]} 1-0

[Event "Commonwealth Open 2019"]
[Site "Delhi"]
[Date "2019.06.30"]
[Round "1.21"]
[White "Saypuri Srithan"]
[Black "Kulkarni, Bhakti"]
[Result "1/2-1/2"]
[ECO "B14"]
[WhiteElo "1816"]
[BlackElo "2380"]
[Annotator "ChessBase"]
[PlyCount "55"]
[EventDate "2019.06.30"]
[EventType "swiss"]
[EventCountry "IND"]
[SourceTitle "playchess.com"]
[Source "ChessBase"]
[SourceQuality "1"]
[TimeControl "5400+30"]

1. e4 {[%emt 0:00:24]} c6 {[%emt 0:01:15]} 2. d4 {[%emt 0:00:05]} d5 {[%emt 0:00:07]} 3. exd5 {[%emt 0:00:06]} cxd5 {[%emt 0:00:04]} 4. c4 {[%emt 0:00:09]} Nf6 {[%emt 0:00:39]} 5. Nc3 {[%emt 0:00:07]} e6 {[%emt 0:00:46]} 6. Nf3 {[%emt 0:00:10]} Bb4 {[%emt 0:01:20]} 7. Bd3 {[%emt 0:00:18]} O-O {[%emt 0:01:17]} 8. O-O {[%emt 0:00:06]} dxc4 {[%emt 0:05:59]} 9. Bxc4 {[%emt 0:00:06]} Nc6 {[%emt 0:00:19]} 10. Bg5 {[%emt 0:00:48]} h6 {[%emt 0:03:33]} 11. Bh4 {[%emt 0:05:47]} b6 {[%emt 0:12:19]} 12. a3 {[%emt 0:04:18]} Bxc3 {[%emt 0:03:48]} 13. bxc3 {[%emt 0:00:08]} Bb7 {[%emt 0:00:13]} 14. Re1 {[%emt 0:05:39]} Na5 {[%emt 0:03:39]} 15. Ba2 {[%emt 0:01:14]} Rc8 {[%emt 0:08:54]} 16. Qd3 {[%emt 0:09:16]} Qc7 {[%emt 0:18:46]} 17. Rac1 {[%emt 0:04:09]} Bd5 {[%emt 0:04:34]} 18. Bxf6 {[%emt 0:39:56]} Bxa2 {[%emt 0:02:19]} 19. Be5 {[%emt 0:01:33]} Qe7 {[%emt 0:09:56]} 20. Nd2 {[%emt 0:02:15]} Nc6 {[%emt 0:08:19]} 21. c4 {[%emt 0:02:55]} b5 {[%emt 0:00:45]} 22. cxb5 {[%emt 0:02:33]} Nxe5 {[%emt 0:00:03]} 23. dxe5 {[%emt 0:00:12]} Rcd8 {[%emt 0:00:20]} 24. Qe3 {[%emt 0:00:54]} Qd7 {[%emt 0:02:55]} 25. Ne4 {[%emt 0:04:26]} Qxb5 {[%emt 0:00:18]} 26. Qxa7 {[%emt 0:01:37]} Ra8 {[%emt 0:01:29]} 27. Qe7 {[%emt 0:04:03]} Qa5 {[%emt 0:04:44]} 28. Nc3 {[%emt 0:02:49]} 1/2-1/2

[Event "Commonwealth Open 2019"]
[Site "Delhi"]
[Date "2019.06.30"]
[Round "1.22"]
[White "Saurabh Anand"]
[Black "Patil Harshal"]
[Result "0-1"]
[ECO "C60"]
[WhiteElo "2351"]
[BlackElo "1809"]
[Annotator "ChessBase"]
[PlyCount "34"]
[EventDate "2019.06.30"]
[EventType "swiss"]
[EventCountry "IND"]
[SourceTitle "playchess.com"]
[Source "ChessBase"]
[SourceQuality "1"]
[TimeControl "5400+30"]

1. e4 {[%emt 0:00:44]} e5 {[%emt 0:00:15]} 2. Nf3 {[%emt 0:00:08]} Nc6 {[%emt 0:00:21]} 3. Bb5 {[%emt 0:02:12]} Nge7 {[%emt 0:01:36]} 4. c3 {[%emt 0:00:55]} g6 {[%emt 0:01:57]} 5. O-O {[%emt 0:01:10]} Bg7 {[%emt 0:00:07]} 6. d4 {[%emt 0:00:05]} exd4 {[%emt 0:03:46]} 7. cxd4 {[%emt 0:00:10]} d5 {[%emt 0:01:09]} 8. exd5 {[%emt 0:04:45]} Nxd5 {[%emt 0:00:27]} 9. Re1+ {[%emt 0:05:09]} Be6 {[%emt 0:00:14]} 10. Ng5 {[%emt 0:00:42]} O-O {[%emt 0:01:23]} 11. Bxc6 {[%emt 0:01:32]} bxc6 {[%emt 0:00:08]} 12. Nxe6 {[%emt 0:00:42]} fxe6 {[%emt 0:00:02]} 13. Rxe6 {[%emt 0:02:31]} Qh4 {[%emt 0:03:28]} 14. Qe1 {[%emt 0:14:05]} Bxd4 {[%emt 0:02:57]} 15. g3 {[%emt 0:00:29]} Qg4 16. Re2 {[%emt 0:00:17]} Rxf2 {[%emt 0:05:39]} 17. Qxf2 {[%emt 0:03:16]} Rf8 {[%emt 0:04:07]} 0-1

[Event "Commonwealth Open 2019"]
[Site "Delhi"]
[Date "2019.06.30"]
[Round "1.23"]
[White "Hoareau, Benjamin"]
[Black "Rathnakaran, K.."]
[Result "0-1"]
[ECO "A40"]
[WhiteElo "1779"]
[BlackElo "2338"]
[Annotator "ChessBase"]
[PlyCount "76"]
[EventDate "2019.06.30"]
[EventType "swiss"]
[EventCountry "IND"]
[SourceTitle "playchess.com"]
[Source "ChessBase"]
[SourceQuality "1"]
[TimeControl "5400+30"]

1. d4 {[%emt 0:26:00]} g6 {[%emt 0:00:00]} 2. Nf3 {[%emt 0:00:25]} Bg7 {[%emt 0:00:00]} 3. Bf4 {[%emt 0:00:32]} d6 {[%emt 0:00:00]} 4. e3 {[%emt 0:00:51]} Nd7 {[%emt 0:00:00]} 5. Bc4 {[%emt 0:00:42]} Nh6 {[%emt 0:00:44]} 6. Nbd2 {[%emt 0:01:07]} e5 {[%emt 0:00:07]} 7. Bg5 {[%emt 0:00:56]} f6 {[%emt 0:00:08]} 8. Bh4 {[%emt 0:01:09]} Qe7 {[%emt 0:00:13]} 9. O-O {[%emt 0:03:01]} e4 {[%emt 0:00:46]} 10. Ne1 {[%emt 0:00:56]} Nf5 {[%emt 0:00:07]} 11. Bg3 {[%emt 0:00:33]} Nb6 {[%emt 0:00:06]} 12. Bb3 {[%emt 0:00:40]} h5 {[%emt 0:00:07]} 13. h3 {[%emt 0:01:23]} Nxg3 {[%emt 0:00:07]} 14. fxg3 {[%emt 0:00:09]} f5 {[%emt 0:00:02]} 15. Qe2 {[%emt 0:02:46]} d5 {[%emt 0:00:06]} 16. c4 {[%emt 0:00:21]} c6 {[%emt 0:00:06]} 17. cxd5 {[%emt 0:01:48]} cxd5 {[%emt 0:00:09]} 18. a4 {[%emt 0:00:20]} Be6 {[%emt 0:00:12]} 19. a5 {[%emt 0:00:54]} Nd7 {[%emt 0:00:09]} 20. Qb5 {[%emt 0:00:31]} Qd6 {[%emt 0:00:06]} 21. Qxb7 {[%emt 0:01:33]} Rb8 {[%emt 0:00:36]} 22. Qxa7 {[%emt 0:00:47]} Ke7 {[%emt 0:00:23]} 23. Nc2 {[%emt 0:01:05]} Ra8 {[%emt 0:00:17]} 24. Qb7 {[%emt 0:04:16]} Rhb8 {[%emt 0:01:13]} 25. a6 {[%emt 0:01:05]} Rxb7 {[%emt 0:00:05]} 26. axb7 {[%emt 0:00:11]} Rb8 {[%emt 0:00:03]} 27. Ra7 {[%emt 0:00:23]} Qxg3 {[%emt 0:00:09]} 28. Ba4 {[%emt 0:00:26]} Qc7 {[%emt 0:00:13]} 29. Nb4 {[%emt 0:03:48]} Rxb7 {[%emt 0:00:06]} 30. Nc6+ {[%emt 0:01:02]} Kf6 {[%emt 0:00:18]} 31. Ra8 {[%emt 0:03:16]} Rxb2 {[%emt 0:02:43]} 32. Rf2 {[%emt 0:01:47]} Nb6 {[%emt 0:00:36]} 33. Ra7 {[%emt 0:01:08]} Qg3 {[%emt 0:00:37]} 34. Nxe4+ {[%emt 0:05:01]} dxe4 {[%emt 0:00:09]} 35. Rxb2 {[%emt 0:00:06]} Qxe3+ {[%emt 0:00:05]} 36. Kh2 {[%emt 0:00:24]} Nxa4 {[%emt 0:00:06]} 37. Rxa4 {[%emt 0:00:26]} Qf4+ {[%emt 0:00:03]} 38. g3 {[%emt 0:01:43]} Qc1 {[%emt 0:00:06]} 0-1

[Event "Commonwealth Open 2019"]
[Site "Delhi"]
[Date "2019.06.30"]
[Round "1.24"]
[White "Vaishali R"]
[Black "Dutta Sarthak"]
[Result "1-0"]
[ECO "B12"]
[WhiteElo "2338"]
[BlackElo "1702"]
[Annotator "NA"]
[PlyCount "52"]
[EventDate "2019.06.30"]
[EventType "swiss"]
[EventCountry "IND"]
[SourceTitle "playchess.com"]
[Source "ChessBase"]
[SourceQuality "1"]
[TimeControl "5400+30"]

1. e4 {[%emt 0:00:00]} c6 {[%emt 0:01:05]} 2. d4 {[%emt 0:00:00]} d5 {[%emt 0:00:02]} 3. e5 {[%emt 0:00:20]} c5 {[%emt 0:00:18]} 4. dxc5 {[%emt 0:01:15]} e6 {[%emt 0:00:11]} 5. Nf3 {[%emt 0:00:11]} Bxc5 {[%emt 0:02:55]} 6. Bd3 {[%emt 0:00:07]} Ne7 {[%emt 0:00:56]} 7. O-O {[%emt 0:01:50]} Ng6 {[%emt 0:00:24]} 8. a3 {[%emt 0:06:03]} Nc6 {[%emt 0:04:54]} 9. b4 {[%emt 0:08:37]} Be7 {[%emt 0:02:29]} 10. Re1 {[%emt 0:01:08]} Qc7 {[%emt 0:11:04]} 11. Bb2 {[%emt 0:01:22]} O-O {[%emt 0:03:04]} 12. Nbd2 {[%emt 0:05:33]} b6 {[%emt 0:08:51]} 13. c4 {[%emt 0:00:30]} dxc4 {[%emt 0:04:43]} 14. Nxc4 {[%emt 0:11:09]} Bb7 {[%emt 0:12:03]} 15. Rc1 {[%emt 0:05:55]} Qb8 {[%emt 0:05:55]} 16. Be4 {[%emt 0:14:17]} Rd8 {[%emt 0:04:00]} 17. Qe2 {[%emt 0:02:56]} Nf4 {[%emt 0:07:14]} 18. Qc2 {[%emt 0:01:07]} Rc8 {[%emt 0:02:46]} 19. Bxh7+ {[%emt 0:04:27]} Kf8 {[%emt 0:06:42]} 20. Qe4 {[%emt 0:05:39]} Nxb4 {[%emt 0:07:26]} 21. Qxf4 {[%emt 0:00:38]} Nd5 {[%emt 0:03:10]} 22. Qg4 {[%emt 0:00:26]} g6 {[%emt 0:00:41]} 23. Bxg6 {[%emt 0:01:00]} Rc6 {[%emt 0:02:03]} 24. Nd6 {[%emt 0:00:52]} Bxd6 {[%emt 0:01:25]} 25. exd6 Rc5 {[%emt 0:00:41]} 26. Bg7+ {[%emt 0:00:00] Rxc1 Bh6+} Kg8 {[%emt 0:00:45]} 1-0

[Event "Commonwealth Open 2019"]
[Site "Delhi"]
[Date "2019.06.30"]
[Round "1.25"]
[White "Singh Ojasva"]
[Black "Navalgund, Niranjan"]
[Result "1/2-1/2"]
[ECO "C55"]
[WhiteElo "1666"]
[BlackElo "2326"]
[Annotator "NA"]
[PlyCount "102"]
[EventDate "2019.06.30"]
[EventType "swiss"]
[EventCountry "IND"]
[SourceTitle "playchess.com"]
[Source "ChessBase"]
[SourceQuality "1"]
[TimeControl "5400+30"]

1. e4 {[%emt 0:00:00]} e5 {[%emt 0:00:55]} 2. Nf3 {[%emt 0:00:00]} Nc6 {[%emt 0:00:02]} 3. Bc4 {[%emt 0:00:05]} Nf6 {[%emt 0:00:28]} 4. d4 {[%emt 0:00:42]} exd4 {[%emt 0:00:24]} 5. Nxd4 {[%emt 0:00:43]} Nxe4 {[%emt 0:17:51]} 6. Bxf7+ {[%emt 0:01:19]} Kxf7 {[%emt 0:00:02]} 7. Qh5+ {[%emt 0:00:04]} g6 {[%emt 0:00:26]} 8. Qd5+ {[%emt 0:00:05]} Kg7 {[%emt 0:02:39]} 9. Nxc6 {[%emt 0:00:29]} Qe8 {[%emt 0:12:30]} 10. Qe5+ {[%emt 0:19:07]} Qxe5 {[%emt 0:00:02]} 11. Nxe5 {[%emt 0:00:01]} Bb4+ {[%emt 0:00:01]} 12. c3 {[%emt 0:00:28]} Bc5 {[%emt 0:00:36]} 13. O-O {[%emt 0:00:45]} d6 {[%emt 0:03:10]} 14. Nf3 {[%emt 0:08:27]} Bd7 {[%emt 0:10:57]} 15. Nbd2 {[%emt 0:03:47]} Rhe8 {[%emt 0:01:49]} 16. Nd4 {[%emt 0:05:51]} Nf6 {[%emt 0:05:00]} 17. N2f3 {[%emt 0:05:05]} Bb6 {[%emt 0:00:35]} 18. Bd2 {[%emt 0:02:12]} c5 {[%emt 0:04:31]} 19. Nc2 {[%emt 0:04:34]} Bc6 {[%emt 0:00:27]} 20. Rfe1 {[%emt 0:02:04]} Be4 {[%emt 0:08:05]} 21. Rac1 {[%emt 0:03:06]} d5 {[%emt 0:10:00]} 22. b4 {[%emt 0:07:10]} Ng4 {[%emt 0:06:15]} 23. bxc5 {[%emt 0:09:50]} Bxc5 {[%emt 0:00:14]} 24. Nfd4 {[%emt 0:00:08]} Ne5 {[%emt 0:03:52]} 25. Rcd1 {[%emt 0:06:30]} Nd3 {[%emt 0:04:31]} 26. Re2 {[%emt 0:02:19]} b6 {[%emt 0:01:45]} 27. f3 {[%emt 0:07:39]} Bf5 {[%emt 0:02:41]} 28. Be3 {[%emt 0:01:10]} Nb2 {[%emt 0:03:11]} 29. Nxf5+ {[%emt 0:01:19]} gxf5 {[%emt 0:00:02]} 30. Rxd5 {[%emt 0:00:57]} Na4 {[%emt 0:00:20]} 31. Bd4+ {[%emt 0:02:18]} Kg6 {[%emt 0:01:09]} 32. Rde5 {[%emt 0:04:40]} Rxe5 {[%emt 0:00:22]} 33. Rxe5 {[%emt 0:00:10]} Bxd4+ {[%emt 0:00:28]} 34. cxd4 {[%emt 0:01:14]} f4 {[%emt 0:01:04]} 35. g3 {[%emt 0:01:39]} Rc8 {[%emt 0:00:06]} 36. Nb4 {[%emt 0:00:34]} Rc4 {[%emt 0:00:19]} 37. Nd5 {[%emt 0:00:56]} fxg3 {[%emt 0:00:02]} 38. hxg3 {[%emt 0:00:31]} Rxd4 {[%emt 0:00:01]} 39. Nf4+ {[%emt 0:00:13]} Kf6 {[%emt 0:00:28]} 40. Re6+ {[%emt 0:00:27]} Kf7 {[%emt 0:00:13]} 41. Rh6 {[%emt 0:00:13]} Rd1+ {[%emt 0:00:35]} 42. Kg2 {[%emt 0:00:23]} Kg7 {[%emt 0:00:01]} 43. Re6 {[%emt 0:00:21]} a5 {[%emt 0:00:23]} 44. g4 {[%emt 0:01:10]} Ra1 {[%emt 0:00:26]} 45. Nh5+ {[%emt 0:00:54]} Kf7 {[%emt 0:00:22]} 46. Rh6 {[%emt 0:00:22]} Rxa2+ {[%emt 0:00:45]} 47. Kg3 {[%emt 0:00:02]} b5 {[%emt 0:01:16]} 48. Rxh7+ {[%emt 0:00:07]} Ke6 {[%emt 0:00:10]} 49. Nf4+ {[%emt 0:00:59]} Kf6 {[%emt 0:01:31]} 50. Nh5+ {[%emt 0:00:45]} Ke6 {[%emt 0:00:16]} 51. Nf4+ {[%emt 0:00:14]} Ke5 1/2-1/2

[Event "Commonwealth Open 2019"]
[Site "Delhi"]
[Date "2019.06.30"]
[Round "1.26"]
[White "Sangma, Rahul"]
[Black "Hanif, Mollah"]
[Result "1-0"]
[ECO "A05"]
[WhiteElo "2298"]
[BlackElo "1650"]
[Annotator "ChessBase"]
[PlyCount "39"]
[EventDate "2019.06.30"]
[EventType "swiss"]
[EventCountry "IND"]
[SourceTitle "playchess.com"]
[Source "ChessBase"]
[SourceQuality "1"]
[TimeControl "5400+30"]

1. Nf3 {[%emt 0:00:00]} Nf6 {[%emt 0:08:20]} 2. c4 {[%emt 0:00:00]} c6 {[%emt 0:00:40]} 3. Nc3 {[%emt 0:00:11]} d5 {[%emt 0:01:05]} 4. e3 {[%emt 0:00:03]} e6 {[%emt 0:01:23]} 5. b3 {[%emt 0:00:16]} Nbd7 {[%emt 0:00:37]} 6. Bb2 {[%emt 0:00:15]} Bd6 {[%emt 0:00:46]} 7. Qc2 {[%emt 0:00:06]} a6 {[%emt 0:01:44]} 8. d4 {[%emt 0:00:36]} O-O {[%emt 0:00:52]} 9. Bd3 {[%emt 0:00:27]} Re8 {[%emt 0:01:37]} 10. O-O {[%emt 0:00:13]} dxc4 {[%emt 0:01:08]} 11. Bxc4 {[%emt 0:00:44]} e5 {[%emt 0:00:49]} 12. Ng5 {[%emt 0:07:05]} Rf8 {[%emt 0:05:41]} 13. Nce4 {[%emt 0:01:41]} Nxe4 {[%emt 0:01:15]} 14. Nxe4 {[%emt 0:00:04]} Bb8 {[%emt 0:01:36]} 15. Rfd1 {[%emt 0:02:12]} exd4 {[%emt 0:02:12]} 16. Rxd4 {[%emt 0:01:02]} Qc7 {[%emt 0:00:41]} 17. Nd6 {[%emt 0:06:49]} Ne5 {[%emt 0:00:20]} 18. Rh4 {[%emt 0:00:28]} g6 {[%emt 0:02:37]} 19. Bxe5 {[%emt 0:00:14]} Qe7 {[%emt 0:02:12]} 20. Qxg6+ {[%emt 0:00:07]} 1-0

[Event "Commonwealth Open 2019"]
[Site "Delhi"]
[Date "2019.06.30"]
[Round "1.27"]
[White "Bhoopnath"]
[Black "Saravana, IM Krishnan P."]
[Result "0-1"]
[ECO "B02"]
[WhiteElo "1649"]
[BlackElo "2290"]
[Annotator "ChessBase"]
[PlyCount "78"]
[EventDate "2019.06.30"]
[EventType "swiss"]
[EventCountry "IND"]
[SourceTitle "playchess.com"]
[Source "ChessBase"]
[SourceQuality "1"]
[TimeControl "5400+30"]

1. e4 {[%emt 0:00:00]} Nf6 {[%emt 0:00:09]} 2. Nc3 {[%emt 0:00:12]} d5 {[%emt 0:00:32]} 3. e5 {[%emt 0:00:26]} d4 {[%emt 0:00:23]} 4. exf6 {[%emt 0:00:43]} dxc3 {[%emt 0:00:05]} 5. fxe7 {[%emt 0:02:15]} Qxe7+ {[%emt 0:01:28]} 6. Qe2 {[%emt 0:01:24]} cxd2+ {[%emt 0:01:34]} 7. Bxd2 {[%emt 0:00:34]} Nc6 {[%emt 0:00:09]} 8. Nf3 {[%emt 0:03:01]} Be6 {[%emt 0:01:01]} 9. Qe3 {[%emt 0:04:55]} O-O-O {[%emt 0:01:11]} 10. Be2 {[%emt 0:13:37]} Bd5 {[%emt 0:10:42]} 11. O-O {[%emt 0:07:05]} f6 {[%emt 0:03:17]} 12. Rfd1 {[%emt 0:09:49]} Qf7 {[%emt 0:03:15]} 13. Bc3 {[%emt 0:11:11]} Bd6 {[%emt 0:01:09]} 14. Nd4 {[%emt 0:03:03]} Rhe8 {[%emt 0:03:46]} 15. Qh3+ {[%emt 0:04:53]} Kb8 {[%emt 0:00:10]} 16. Nxc6+ {[%emt 0:01:39]} Bxc6 {[%emt 0:00:15]} 17. Bf3 {[%emt 0:00:58]} Bxf3 {[%emt 0:02:23]} 18. Qxf3 {[%emt 0:00:24]} Qg6 {[%emt 0:00:07]} 19. Rd3 {[%emt 0:02:38]} Re4 {[%emt 0:00:42]} 20. Rad1 {[%emt 0:02:37]} Rde8 {[%emt 0:01:00]} 21. g3 {[%emt 0:03:43]} a6 {[%emt 0:00:54]} 22. a3 {[%emt 0:07:46]} h5 {[%emt 0:07:25]} 23. Bb4 {[%emt 0:06:11]} Bxb4 {[%emt 0:09:32]} 24. axb4 {[%emt 0:00:09]} Kc8 {[%emt 0:03:03]} 25. c3 {[%emt 0:03:55]} h4 {[%emt 0:01:01]} 26. Kg2 {[%emt 0:02:17]} Qh7 {[%emt 0:03:32]} 27. g4 {[%emt 0:03:38]} R4e7 {[%emt 0:14:55]} 28. Rd4 {[%emt 0:01:52]} c6 {[%emt 0:04:02]} 29. Qf4 {[%emt 0:01:36]} Re5 {[%emt 0:03:15]} 30. Qd2 {[%emt 0:00:28]} Qg8 {[%emt 0:01:18]} 31. Rd7 {[%emt 0:01:16]} R5e7 {[%emt 0:01:55]} 32. Rd6 {[%emt 0:00:39]} Kb8 {[%emt 0:00:55]} 33. Qd4 {[%emt 0:00:53]} Rc8 {[%emt 0:03:33]} 34. Qb6 {[%emt 0:00:26]} Qc4 {[%emt 0:00:39]} 35. R1d4 {[%emt 0:00:14]} h3+ {[%emt 0:02:22]} 36. Kxh3 {[%emt 0:00:44]} Qf1+ {[%emt 0:00:17]} 37. Kg3 {[%emt 0:00:14]} Qg1+ {[%emt 0:00:10]} 38. Kf3 {[%emt 0:00:22]} Qxh2 {[%emt 0:00:39]} 39. Rd7 {[%emt 0:01:08]} Qh3+ {[%emt 0:00:35]} 0-1